[Event "18th Charleroi Open-A 2019"]
[Site "Charleroi"]
[Date "2019.07.29"]
[Round "4.5"]
[White "De Waele, Warre"]
[Black "Godry, Clement"]
[Result "1-0"]
[ECO "E05"]
[WhiteElo "2225"]
[BlackElo "1962"]
[Annotator "NA"]
[PlyCount "69"]
[EventDate "2019.07.22"]
[EventType "swiss"]
[EventCountry "BEL"]
[SourceTitle "playchess.com"]
[Source "ChessBase"]
[SourceQuality "1"]
[TimeControl "40/5400+30:1800+30"]

1. d4 {[%emt 0:02:07]} Nf6 {[%emt 0:00:00]} 2. c4 {[%emt 0:00:29]} e6 {[%emt 0:00:00]} 3. Nf3 {[%emt 0:00:08]} d5 {[%emt 0:00:07]} 4. g3 {[%emt 0:00:51]} Be7 {[%emt 0:00:09]} 5. Bg2 {[%emt 0:00:06]} dxc4 {[%emt 0:00:07]} 6. O-O {[%emt 0:01:06]} O-O {[%emt 0:00:35]} 7. Qc2 {[%emt 0:01:38]} b5 {[%emt 0:00:58]} 8. a4 {[%emt 0:00:09]} b4 {[%emt 0:02:54]} 9. Nfd2 {[%emt 0:00:42]} Nd5 {[%emt 0:00:29]} 10. Nxc4 {[%emt 0:02:47]} a5 {[%emt 0:00:34]} 11. Nbd2 {[%emt 0:03:43]} Nd7 {[%emt 0:02:43]} 12. Nb3 {[%emt 0:08:37]} c6 {[%emt 0:03:37]} 13. e4 {[%emt 0:03:04]} N5f6 {[%emt 0:00:21]} 14. Rd1 {[%emt 0:00:47]} Bb7 {[%emt 0:02:04]} 15. Bf4 {[%emt 0:02:43]} Nh5 {[%emt 0:01:24]} 16. Be3 {[%emt 0:00:33]} Qc7 {[%emt 0:04:05]} 17. Bf3 {[%emt 0:04:21]} Nhf6 {[%emt 0:00:13]} 18. Bf4 {[%emt 0:00:13]} Qd8 {[%emt 0:00:24]} 19. Nc5 {[%emt 0:03:50]} Ba6 {[%emt 0:02:20]} 20. Nxa6 {[%emt 0:02:53]} Rxa6 {[%emt 0:01:36]} 21. Be2 {[%emt 0:00:12]} Qa8 {[%emt 0:21:30]} 22. Ne5 {[%emt 0:12:03]} Rb6 {[%emt 0:01:56]} 23. Bc4 {[%emt 0:08:45]} Rc8 {[%emt 0:09:15]} 24. Bg5 {[%emt 0:04:11]} Nf8 {[%emt 0:13:53]} 25. Rac1 {[%emt 0:04:44]} h6 {[%emt 0:01:07]} 26. Be3 {[%emt 0:00:44]} Rb7 {[%emt 0:02:54]} 27. Bb5 {[%emt 0:01:27]} cxb5 {[%emt 0:02:48]} 28. Qxc8 {[%emt 0:00:05]} Qxc8 {[%emt 0:00:06]} 29. Rxc8 {[%emt 0:00:05]} Nxe4 {[%emt 0:00:18]} 30. axb5 {[%emt 0:00:39]} Nd6 {[%emt 0:01:29]} 31. Ra8 {[%emt 0:00:26]} Rxb5 {[%emt 0:00:11]} 32. Nc6 {[%emt 0:00:36]} Bf6 {[%emt 0:00:15]} 33. Bf4 {[%emt 0:01:30]} Rd5 {[%emt 0:02:00]} 34. Be5 {[%emt 0:00:47]} Bxe5 {[%emt 0:00:44]} 35. Ne7+ {[%emt 0:00:06]} 1-0

[Event "18th Charleroi Open-A 2019"]
[Site "Charleroi"]
[Date "2019.07.29"]
[Round "4.6"]
[White "Huynh, Laurent"]
[Black "Abdullayev, Elshad"]
[Result "0-1"]
[ECO "A36"]
[WhiteElo "2111"]
[BlackElo "2204"]
[Annotator "NA"]
[PlyCount "62"]
[EventDate "2019.07.22"]
[EventType "swiss"]
[EventCountry "BEL"]
[SourceTitle "playchess.com"]
[Source "ChessBase"]
[SourceQuality "1"]
[TimeControl "40/5400+30:1800+30"]

1. e4 {[%emt 0:00:00]} c5 {[%emt 0:00:47]} 2. c4 {[%emt 0:00:47]} Nc6 {[%emt 0:01:14]} 3. Nc3 {[%emt 0:00:04]} g6 {[%emt 0:00:10]} 4. g3 {[%emt 0:00:07]} Bg7 {[%emt 0:00:48]} 5. Bg2 {[%emt 0:00:16]} d6 {[%emt 0:01:04]} 6. Nge2 {[%emt 0:00:28]} h5 {[%emt 0:01:10]} 7. h3 {[%emt 0:01:03]} Bd7 {[%emt 0:02:58]} 8. a3 {[%emt 0:05:11]} Qc8 {[%emt 0:00:31]} 9. d3 {[%emt 0:01:47]} Nd4 {[%emt 0:05:33]} 10. Rb1 {[%emt 0:02:49]} Rb8 {[%emt 0:02:44]} 11. Nxd4 {[%emt 0:06:04]} cxd4 {[%emt 0:00:11]} 12. Ne2 {[%emt 0:04:52]} b5 {[%emt 0:00:23]} 13. b3 {[%emt 0:03:44]} bxc4 {[%emt 0:13:34]} 14. dxc4 {[%emt 0:00:30]} e5 {[%emt 0:00:32]} 15. Qd3 {[%emt 0:00:51]} f5 {[%emt 0:01:23]} 16. f3 {[%emt 0:08:00]} Nf6 {[%emt 0:02:35]} 17. Bg5 {[%emt 0:11:58]} Nh7 {[%emt 0:11:39]} 18. Bd2 {[%emt 0:04:08]} O-O {[%emt 0:03:30]} 19. Ng1 {[%emt 0:15:40]} Nf6 {[%emt 0:22:26]} 20. Bg5 {[%emt 0:08:44]} Qa6 {[%emt 0:01:07]} 21. b4 {[%emt 0:04:12]} Rbc8 {[%emt 0:14:22]} 22. Rc1 {[%emt 0:05:16]} Be6 {[%emt 0:01:49]} 23. Bf1 {[%emt 0:00:29]} Qb7 {[%emt 0:03:31]} 24. Bxf6 {[%emt 0:02:42]} Bxf6 {[%emt 0:00:49]} 25. h4 {[%emt 0:00:15]} d5 {[%emt 0:01:40]} 26. exd5 {[%emt 0:00:37]} Bxd5 {[%emt 0:00:23]} 27. c5 {[%emt 0:00:58]} e4 {[%emt 0:00:28]} 28. Qa6 {[%emt 0:00:16]} Qc7 {[%emt 0:03:35]} 29. f4 {[%emt 0:00:08]} d3 {[%emt 0:00:54]} 30. Rh2 {[%emt 0:00:05]} Qg7 {[%emt 0:00:54]} 31. Qa4 {[%emt 0:01:13]} Bb2 {[%emt 0:00:50]} 0-1

[Event "18th Charleroi Open-A 2019"]
[Site "Charleroi"]
[Date "2019.07.29"]
[Round "4.7"]
[White "Manafov, Vugar"]
[Black "Miezis, Normunds"]
[Result "0-1"]
[ECO "B25"]
[WhiteElo "2175"]
[BlackElo "2495"]
[Annotator "RC"]
[PlyCount "112"]
[EventDate "2019.07.22"]
[EventType "swiss"]
[EventCountry "BEL"]
[TimeControl "40/5400+30:1800+30"]

1. Nf3 {[%emt 0:00:41]} c5 {[%emt 0:00:00]} 2. g3 {[%emt 0:00:04]} Nc6 {[%emt 0:00:07]} 3. Bg2 {[%emt 0:00:06]} g6 {[%emt 0:00:21]} 4. O-O {[%emt 0:00:05]} Bg7 {[%emt 0:00:09]} 5. e4 {[%emt 0:00:19]} e5 {[%emt 0:01:48]} 6. d3 {[%emt 0:00:30]} Nge7 {[%emt 0:01:18]} 7. Nh4 {[%emt 0:00:43]} O-O {[%emt 0:03:54]} 8. f4 {[%emt 0:00:18]} exf4 {[%emt 0:00:23]} 9. gxf4 {[%emt 0:00:05]} f5 {[%emt 0:00:17]} 10. Nc3 {[%emt 0:01:18]} d6 {[%emt 0:03:02]} 11. Be3 {[%emt 0:02:16]} Nd4 {[%emt 0:02:20]} 12. Qd2 {[%emt 0:07:52]} Rb8 {[%emt 0:04:49]} 13. Nf3 {[%emt 0:06:23]} b5 {[%emt 0:06:56]} 14. Rae1 {[%emt 0:01:23]} b4 {[%emt 0:03:32]} 15. Nd1 {[%emt 0:00:56]} Ne6 {[%emt 0:02:40]} 16. Ng5 {[%emt 0:03:13]} Nxg5 {[%emt 0:07:22]} 17. fxg5 {[%emt 0:00:06]} Ba6 {[%emt 0:06:47]} 18. Rf2 {[%emt 0:06:37]} Qd7 {[%emt 0:13:07]} 19. Bf4 {[%emt 0:13:37]} Bb7 {[%emt 0:08:50]} 20. c3 {[%emt 0:07:20]} bxc3 {[%emt 0:06:11]} 21. bxc3 {[%emt 0:00:37]} Rbd8 {[%emt 0:00:18]} 22. Ne3 {[%emt 0:02:53]} fxe4 {[%emt 0:12:31]} 23. dxe4 {[%emt 0:00:07]} Qe6 {[%emt 0:00:36]} 24. Nd5 {[%emt 0:01:34]} Kh8 {[%emt 0:02:13]} 25. Re3 {[%emt 0:04:49]} Bxd5 {[%emt 0:05:43]} 26. exd5 {[%emt 0:00:12]} Qd7 {[%emt 0:00:21]} 27. Re6 {[%emt 0:06:16]} Nf5 {[%emt 0:00:12]} 28. Bh3 {[%emt 0:00:43]} Qa4 {[%emt 0:00:26]} 29. Bxf5 {[%emt 0:01:18]} Rxf5 {[%emt 0:00:09]} 30. Bxd6 {[%emt 0:01:02]} Qg4+ {[%emt 0:04:01]} 31. Bg3 {[%emt 0:01:55]} Rf4 {[%emt 0:05:07]} 32. Rf3 Rxf3 {[%emt 0:00:00]} 33. Qe2 {[%emt 0:31:12]} Rf2 34. Qxf2 {[%emt 0:00:00]} Bxc3 {[%emt 0:00:00]} 35. Qf7 {[%emt 0:00:00]} Bd4+ {[%emt 0:00:54]} 36. Kg2 {[%emt 0:00:00]} Qxg5 {[%emt 0:00:10]} 37. Re8+ {[%emt 0:00:00]} Rxe8 {[%emt 0:00:02]} 38. Qxe8+ {[%emt 0:00:00]} Kg7 {[%emt 0:00:08]} 39. Qd7+ {[%emt 0:00:00]} Kh6 {[%emt 0:00:15]} 40. Qh3+ {[%emt 0:00:00]} Kg7 {[%emt 0:00:42]} 41. Qd7+ {[%emt 0:02:38]} Kh6 {[%emt 0:30:13]} 42. Qh3+ {[%emt 0:00:02]} Qh5 {[%emt 0:00:42]} 43. Bf4+ {[%emt 0:04:32]} g5 {[%emt 0:00:11]} 44. Qe6+ {[%emt 0:00:03]} Qg6 {[%emt 0:00:19]} 45. Qh3+ {[%emt 0:00:09]} Kg7 {[%emt 0:00:40]} 46. Qd7+ {[%emt 0:00:04]} Qf7 {[%emt 0:00:41]} 47. Qxf7+ {[%emt 0:00:03]} Kxf7 {[%emt 0:00:08]} 48. Bxg5 {[%emt 0:00:02]} Kg6 {[%emt 0:00:37]} 49. Bf4 {[%emt 0:01:19]} Kf5 {[%emt 0:01:00]} 50. Kf3 {[%emt 0:00:16]} Be5 {[%emt 0:01:33]} 51. Bh6 {[%emt 0:02:43]} Bxh2 {[%emt 0:00:00]} 52. Bf8 {[%emt 0:00:00]} Bg1 {[%emt 0:00:00]} 53. d6 {[%emt 0:00:00]} Ke6 {[%emt 0:00:00]} 54. Ke4 {[%emt 0:00:00]} a6 {[%emt 0:00:00]} 55. a4 {[%emt 0:00:00]} h5 {[%emt 0:00:00]} 56. Be7 {[%emt 0:00:00]} Bh2 {[%emt 0:04:15] Kd4} 0-1

[Event "18th Charleroi Open-A 2019"]
[Site "Charleroi"]
[Date "2019.07.29"]
[Round "4.8"]
[White "Capone, Nicola"]
[Black "De Villers, Mourad"]
[Result "1/2-1/2"]
[ECO "B72"]
[WhiteElo "2297"]
[BlackElo "2140"]
[Annotator "NA"]
[PlyCount "82"]
[EventDate "2019.07.22"]
[EventType "swiss"]
[EventCountry "BEL"]
[SourceTitle "playchess.com"]
[Source "ChessBase"]
[SourceQuality "1"]
[TimeControl "40/5400+30:1800+30"]

1. e4 {[%emt 0:00:00]} c5 {[%emt 0:00:00]} 2. Nc3 {[%emt 0:00:00]} Nc6 {[%emt 0:00:00]} 3. Nf3 {[%emt 0:00:00]} g6 {[%emt 0:00:22]} 4. d4 {[%emt 0:00:00]} cxd4 {[%emt 0:00:23]} 5. Nxd4 {[%emt 0:00:00]} Bg7 {[%emt 1:31:45]} 6. Be3 {[%emt 0:00:18]} Nf6 {[%emt 0:00:00]} 7. Bc4 {[%emt 0:00:00]} O-O {[%emt 0:00:00]} 8. Bb3 {[%emt 0:00:10]} d6 {[%emt 0:00:00]} 9. h3 {[%emt 0:00:18]} Na5 {[%emt 0:00:00]} 10. O-O {[%emt 0:00:11]} Bd7 {[%emt 0:00:00]} 11. Re1 {[%emt 0:00:06]} a6 {[%emt 0:00:00]} 12. Bg5 {[%emt 0:03:47]} Bc6 {[%emt 0:00:00]} 13. Qd3 {[%emt 0:10:46]} Re8 {[%emt 0:00:00]} 14. Rad1 {[%emt 0:10:04]} Nxb3 {[%emt 0:00:00]} 15. axb3 {[%emt 0:00:13]} Qa5 {[%emt 0:00:00]} 16. Bxf6 {[%emt 0:02:59]} Bxf6 {[%emt 0:00:00]} 17. Nxc6 {[%emt 0:00:03]} bxc6 {[%emt 0:00:00]} 18. Ra1 {[%emt 0:00:04]} Qb6 {[%emt 0:00:00]} 19. Ra4 {[%emt 0:00:15]} Ra7 {[%emt 0:00:00]} 20. Rea1 {[%emt 0:01:13]} Rea8 {[%emt 0:00:00]} 21. Ra5 {[%emt 0:04:18]} Bd4 {[%emt 0:00:00]} 22. Nd1 {[%emt 0:00:31]} e6 {[%emt 0:00:00]} 23. R5a4 {[%emt 0:18:59]} Be5 {[%emt 0:00:00]} 24. Qe2 {[%emt 0:00:51]} Bg7 {[%emt 0:00:00]} 25. R1a2 {[%emt 0:06:24]} h5 {[%emt 0:00:00]} 26. Qe3 {[%emt 0:01:25]} Qc7 {[%emt 0:00:00]} 27. Qf4 {[%emt 0:01:28]} Be5 {[%emt 0:00:00]} 28. Qd2 {[%emt 0:01:01]} d5 {[%emt 0:00:00]} 29. Nc3 {[%emt 0:05:27]} Qe7 {[%emt 0:00:00]} 30. exd5 {[%emt 0:09:55]} exd5 {[%emt 0:00:00]} 31. Ra1 {[%emt 0:00:06]} Qf6 {[%emt 0:00:00]} 32. Qd3 {[%emt 0:03:37]} Kg7 {[%emt 0:00:00]} 33. g3 {[%emt 0:02:09]} a5 {[%emt 0:00:00]} 34. Kg2 {[%emt 0:00:51]} Re7 {[%emt 0:06:46]} 35. Rxa5 {[%emt 0:04:28]} Rae8 {[%emt 0:01:14]} 36. Ra8 {[%emt 0:03:25]} Rxa8 {[%emt 0:02:39]} 37. Rxa8 {[%emt 0:00:06]} h4 {[%emt 0:00:18]} 38. Qf3 {[%emt 0:01:28]} hxg3 {[%emt 0:00:41]} 39. fxg3 {[%emt 0:00:22]} Qxf3+ {[%emt 0:04:50]} 40. Kxf3 {[%emt 0:00:24]} Bd4 {[%emt 0:00:10]} 41. Nd1 {[%emt 0:13:00]} Re1 {[%emt 0:31:22] Ke4} 1/2-1/2

[Event "18th Charleroi Open-A 2019"]
[Site "Charleroi"]
[Date "2019.07.29"]
[Round "4.9"]
[White "Anciaux, Marc"]
[Black "Klinova, Masha"]
[Result "1/2-1/2"]
[ECO "B08"]
[WhiteElo "2120"]
[BlackElo "2269"]
[Annotator "NA"]
[PlyCount "124"]
[EventDate "2019.07.22"]
[EventType "swiss"]
[EventCountry "BEL"]
[SourceTitle "playchess.com"]
[Source "ChessBase"]
[SourceQuality "1"]
[TimeControl "40/5400+30:1800+30"]

1. e4 {[%emt 1:30:30]} d6 {[%emt 1:30:30]} 2. d4 {[%emt 0:00:30]} Nf6 {[%emt 0:00:30]} 3. Nc3 g6 4. Nf3 {[%emt 0:01:00]} Bg7 {[%emt 0:01:00]} 5. Be2 {[%emt 0:00:30]} O-O {[%emt 0:00:30]} 6. O-O {[%emt 0:00:30]} Nc6 {[%emt 0:00:30]} 7. d5 {[%emt 0:00:30]} Nb8 {[%emt 0:00:30]} 8. Be3 {[%emt 0:00:30]} c6 {[%emt 0:00:30]} 9. h3 {[%emt 0:00:30]} b6 {[%emt 0:00:30]} 10. dxc6 {[%emt 0:00:30]} Nxc6 {[%emt 0:00:30]} 11. Nd4 {[%emt 0:00:30]} Bb7 {[%emt 0:00:30]} 12. f4 {[%emt 0:00:30]} Qc7 {[%emt 0:00:30]} 13. Nxc6 {[%emt 0:00:30]} Bxc6 {[%emt 0:00:30]} 14. Bf3 {[%emt 0:00:30]} Rac8 {[%emt 0:00:30]} 15. Rf2 {[%emt 0:00:30]} Qb7 {[%emt 0:00:30]} 16. Qd3 {[%emt 0:00:30]} Nd7 {[%emt 0:00:30]} 17. Bd4 {[%emt 0:00:30]} e5 {[%emt 0:00:30]} 18. Be3 {[%emt 0:00:30]} Nc5 {[%emt 0:00:30]} 19. Bxc5 {[%emt 0:00:30]} bxc5 {[%emt 0:00:30]} 20. f5 {[%emt 0:00:30]} Qxb2 {[%emt 0:00:30]} 21. Rb1 {[%emt 0:00:30]} Qa3 {[%emt 0:00:30]} 22. Nd5 {[%emt 0:00:30]} Qxd3 {[%emt 0:00:30]} 23. Ne7+ {[%emt 0:00:30]} Kh8 {[%emt 0:00:30]} 24. cxd3 {[%emt 0:00:30]} Rc7 {[%emt 0:00:30]} 25. Nxc6 {[%emt 0:00:30]} Rxc6 {[%emt 0:00:30]} 26. Rb7 {[%emt 0:00:30]} c4 {[%emt 0:00:30]} 27. dxc4 {[%emt 0:00:30]} Rxc4 {[%emt 0:00:30]} 28. Rd2 {[%emt 0:00:30]} gxf5 {[%emt 0:00:30]} 29. Rxd6 {[%emt 0:00:30]} fxe4 {[%emt 0:00:30]} 30. Bh5 {[%emt 0:00:30]} e3 {[%emt 0:00:30]} 31. Kf1 {[%emt 0:00:30]} Rc2 {[%emt 0:00:30]} 32. Rdd7 {[%emt 0:00:30]} Rxa2 {[%emt 0:00:30]} 33. Rxa7 {[%emt 0:00:30]} Rxa7 {[%emt 0:00:30]} 34. Rxa7 {[%emt 0:00:30]} f5 {[%emt 0:00:30]} 35. Ke2 {[%emt 0:00:30]} f4 {[%emt 0:00:30]} 36. Bf3 {[%emt 0:00:30]} Rd8 {[%emt 0:00:30]} 37. Ra8 {[%emt 0:00:30]} Bf6 {[%emt 0:00:30]} 38. Rxd8+ {[%emt 0:00:30]} Bxd8 {[%emt 0:00:30]} 39. Be4 {[%emt 0:00:30]} Kg7 {[%emt 0:00:30]} 40. Kf3 {[%emt 0:00:30]} h6 {[%emt 0:00:30]} 41. Ke2 {[%emt 0:30:30]} Kf6 {[%emt 0:30:30]} 42. Kf3 {[%emt 0:00:30]} Ke6 {[%emt 0:00:30]} 43. Ke2 {[%emt 0:00:30]} Kd6 {[%emt 0:00:30]} 44. Kd3 {[%emt 0:00:30]} Kc5 {[%emt 0:00:30]} 45. Bf3 {[%emt 0:00:30]} Kb4 {[%emt 0:00:30]} 46. Be2 {[%emt 0:00:30]} Bc7 {[%emt 0:00:30]} 47. Bf3 {[%emt 0:00:30]} Kb3 {[%emt 0:00:30]} 48. Be2 {[%emt 0:00:30]} Kb2 {[%emt 0:00:30]} 49. Bf3 {[%emt 0:00:30]} Kc1 {[%emt 0:00:30]} 50. Be2 {[%emt 0:00:30]} Bb8 {[%emt 0:00:30]} 51. Bf3 {[%emt 0:00:30]} e4+ {[%emt 0:00:30]} 52. Bxe4 {[%emt 0:00:30]} Kd1 {[%emt 0:00:30]} 53. Bf3+ {[%emt 0:00:30]} Ke1 {[%emt 0:00:30]} 54. h4 {[%emt 0:00:30]} Kf2 {[%emt 0:00:30]} 55. h5 {[%emt 0:00:30]} Bc7 {[%emt 0:00:30]} 56. Bg4 {[%emt 0:00:30]} Kxg2 {[%emt 0:00:30]} 57. Ke2 {[%emt 0:00:30]} Kg3 {[%emt 0:00:30]} 58. Bf3 {[%emt 0:00:30]} Bb8 {[%emt 0:00:30]} 59. Be4 {[%emt 0:00:30]} Kg4 {[%emt 0:00:30]} 60. Bf3+ {[%emt 0:00:30]} Kh4 {[%emt 0:00:30]} 61. Kf1 {[%emt 0:00:30]} Kg3 {[%emt 0:00:30]} 62. Ke2 Kh4 {[%emt 0:00:30]} 1/2-1/2

[Event "18th Charleroi Open-A 2019"]
[Site "Charleroi"]
[Date "2019.07.29"]
[Round "4.11"]
[White "Vernimmen, Pierre"]
[Black "Van Malder, Dries"]
[Result "1/2-1/2"]
[ECO "E11"]
[WhiteElo "1911"]
[BlackElo "2178"]
[Annotator "NA"]
[PlyCount "96"]
[EventDate "2019.07.22"]
[EventType "swiss"]
[EventCountry "BEL"]
[SourceTitle "playchess.com"]
[Source "ChessBase"]
[SourceQuality "1"]
[TimeControl "40/5400+30:1800+30"]

1. d4 {[%emt 0:00:00]} Nf6 {[%emt 0:00:00]} 2. c4 {[%emt 0:00:00]} e6 {[%emt 0:00:00]} 3. g3 {[%emt 0:00:00]} Bb4+ {[%emt 0:00:00]} 4. Bd2 {[%emt 0:00:06]} Qe7 {[%emt 0:00:05]} 5. Bg2 {[%emt 0:00:10]} Nc6 6. Nf3 {[%emt 0:00:18]} Bxd2+ {[%emt 0:00:19]} 7. Nbxd2 {[%emt 0:00:17]} d6 {[%emt 0:00:14]} 8. O-O {[%emt 0:00:18]} O-O {[%emt 0:00:09]} 9. e4 {[%emt 0:00:24]} e5 {[%emt 0:00:08]} 10. d5 {[%emt 0:00:11]} Nb8 {[%emt 0:00:09]} 11. Ne1 {[%emt 0:00:58]} a5 {[%emt 1:34:26]} 12. Nd3 {[%emt 0:02:44]} Na6 {[%emt 0:00:00]} 13. f4 {[%emt 0:02:09]} Nd7 {[%emt 0:00:00]} 14. f5 {[%emt 0:00:54]} f6 15. a3 {[%emt 0:03:31]} Ndc5 {[%emt 0:00:00]} 16. Nxc5 {[%emt 0:00:49]} Nxc5 {[%emt 0:00:00]} 17. b4 {[%emt 0:01:43]} axb4 {[%emt 0:00:00]} 18. axb4 {[%emt 0:00:28]} Ra5 {[%emt 0:03:30]} 19. Ra2 Rxa2 {[%emt 0:00:00]} 20. Qb1 {[%emt 1:25:00]} Ra1 21. Qxa1 {[%emt 0:00:00]} Na6 {[%emt 0:00:00]} 22. Qc3 {[%emt 0:00:00]} c5 {[%emt 0:00:00]} 23. bxc5 {[%emt 0:00:00]} Nxc5 {[%emt 0:00:00]} 24. Qa5 {[%emt 0:00:00]} Bd7 {[%emt 0:00:00]} 25. Rb1 {[%emt 0:00:00]} Qd8 {[%emt 0:00:00]} 26. Qxd8 {[%emt 0:00:00]} Rxd8 {[%emt 0:00:00]} 27. Rb6 {[%emt 0:00:00]} Bc8 {[%emt 0:00:00]} 28. Nb3 {[%emt 0:00:00]} Nxb3 {[%emt 0:00:00]} 29. Rxb3 {[%emt 0:00:00]} Kf7 {[%emt 0:00:00]} 30. Bf3 {[%emt 0:00:00]} Rd7 {[%emt 0:00:00]} 31. Bd1 {[%emt 0:00:00]} Rc7 {[%emt 0:00:00]} 32. Rb4 {[%emt 0:00:00]} Rc5 {[%emt 0:00:00]} 33. Ba4 {[%emt 0:00:00]} Ra5 {[%emt 0:00:00]} 34. Kf2 {[%emt 0:00:00]} Ke7 {[%emt 0:00:00]} 35. Ke3 {[%emt 0:00:00]} Kd8 {[%emt 0:00:00]} 36. Kd3 {[%emt 0:00:00]} Kc7 {[%emt 0:00:00]} 37. Kc3 {[%emt 0:00:00]} b6 {[%emt 0:00:00]} 38. Bc6 {[%emt 0:00:00]} Bb7 {[%emt 0:00:00]} 39. Ba4 {[%emt 0:00:00]} Ra8 {[%emt 0:00:00]} 40. Kd3 {[%emt 0:00:00]} Bc8 {[%emt 0:11:00]} 41. Bc6 {[%emt 0:29:34]} Bb7 {[%emt 0:26:35]} 42. Ba4 {[%emt 0:00:22]} Bc8 {[%emt 0:03:31]} 43. Bc6 {[%emt 0:02:17]} Ra5 {[%emt 0:00:00]} 44. Ba4 {[%emt 0:00:00]} Ra6 {[%emt 0:00:00]} 45. Kc3 {[%emt 0:00:00]} Ra8 {[%emt 0:02:24]} 46. Bc6 {[%emt 0:00:00]} Bb7 {[%emt 0:00:00]} 47. Ba4 {[%emt 0:00:00]} Ra5 {[%emt 0:00:00]} 48. Kd3 {[%emt 0:00:00]} Ra8 {[%emt 0:00:00]} 1/2-1/2

[Event "18th Charleroi Open-A 2019"]
[Site "Charleroi"]
[Date "2019.07.29"]
[Round "4.12"]
[White "Van Mechelen, Jan"]
[Black "Ghyselen, Wouter"]
[Result "1/2-1/2"]
[ECO "C26"]
[WhiteElo "2218"]
[BlackElo "2078"]
[Annotator "NA"]
[PlyCount "41"]
[EventDate "2019.07.22"]
[EventType "swiss"]
[EventCountry "BEL"]
[SourceTitle "playchess.com"]
[Source "ChessBase"]
[SourceQuality "1"]
[TimeControl "40/5400+30:1800+30"]

1. e4 {[%emt 0:00:00]} d6 {[%emt 0:07:31]} 2. Nc3 {[%emt 0:00:37]} Nf6 {[%emt 0:01:41]} 3. g3 {[%emt 0:00:21]} e5 {[%emt 0:03:18]} 4. Bg2 {[%emt 0:00:21]} c6 {[%emt 0:00:58]} 5. Nge2 {[%emt 0:02:09]} Be7 {[%emt 0:03:26]} 6. O-O {[%emt 0:00:13]} O-O {[%emt 0:00:27]} 7. a4 {[%emt 0:01:53]} a5 {[%emt 0:03:07]} 8. h3 {[%emt 0:00:30]} Na6 {[%emt 0:00:05]} 9. d4 {[%emt 0:03:32]} Nb4 {[%emt 0:03:40]} 10. Be3 {[%emt 0:01:06]} exd4 {[%emt 0:11:39]} 11. Nxd4 {[%emt 0:04:12]} d5 {[%emt 0:00:09]} 12. exd5 {[%emt 0:01:55]} Nfxd5 {[%emt 0:03:04]} 13. Nxd5 {[%emt 0:00:10]} Nxd5 {[%emt 0:00:08]} 14. Bd2 {[%emt 0:01:19]} Bf6 {[%emt 0:07:54]} 15. c3 {[%emt 0:11:12]} Bxd4 {[%emt 0:07:39]} 16. cxd4 {[%emt 0:00:14]} Qb6 {[%emt 0:00:43]} 17. Bc3 {[%emt 0:00:30]} Be6 {[%emt 0:00:41]} 18. Re1 {[%emt 0:02:35]} Rfd8 {[%emt 0:00:45]} 19. Qh5 {[%emt 0:03:46]} Rd7 {[%emt 0:02:27]} 20. Bxd5 {[%emt 0:01:22]} Rxd5 {[%emt 0:00:48]} 21. Re5 {[%emt 0:00:31]} 1/2-1/2

[Event "18th Charleroi Open-A 2019"]
[Site "Charleroi"]
[Date "2019.07.29"]
[Round "4.13"]
[White "Decrop, Benjamin"]
[Black "Boucquet, Emile"]
[Result "1/2-1/2"]
[ECO "B90"]
[WhiteElo "2183"]
[BlackElo "2064"]
[Annotator "NA"]
[PlyCount "66"]
[EventDate "2019.07.22"]
[EventType "swiss"]
[EventCountry "BEL"]
[SourceTitle "playchess.com"]
[Source "ChessBase"]
[SourceQuality "1"]
[TimeControl "40/5400+30:1800+30"]

1. e4 {[%emt 0:00:00]} c5 {[%emt 0:01:25]} 2. Nf3 {[%emt 0:00:00]} d6 {[%emt 0:00:02]} 3. d4 {[%emt 0:00:00]} Nf6 {[%emt 0:00:06]} 4. Nc3 cxd4 {[%emt 0:00:03]} 5. Nxd4 {[%emt 0:00:00]} a6 {[%emt 0:00:05]} 6. Be3 {[%emt 0:00:00]} e5 {[%emt 0:00:47]} 7. Nf3 {[%emt 0:00:01]} Qc7 {[%emt 0:03:49]} 8. a4 {[%emt 0:00:35]} h6 {[%emt 0:03:22]} 9. a5 Be6 {[%emt 0:08:29]} 10. Be2 {[%emt 0:04:52]} Qc6 {[%emt 0:04:04]} 11. Nd2 {[%emt 0:09:42]} Nbd7 {[%emt 0:04:00]} 12. O-O {[%emt 0:02:54]} Be7 {[%emt 0:03:47]} 13. Bf3 {[%emt 0:21:02]} O-O {[%emt 0:02:26]} 14. Nb3 {[%emt 0:05:21]} Rac8 {[%emt 0:05:11]} 15. Re1 {[%emt 0:09:48]} Rfe8 {[%emt 0:03:44]} 16. Re2 {[%emt 0:02:26]} Qc7 {[%emt 0:03:58]} 17. Rd2 {[%emt 0:01:06]} b5 {[%emt 0:11:23]} 18. axb6 {[%emt 0:05:35]} Nxb6 {[%emt 0:00:19]} 19. Bxb6 {[%emt 0:00:05]} Qxb6 {[%emt 0:00:12]} 20. Nd5 {[%emt 0:00:11]} Nxd5 {[%emt 0:01:38]} 21. exd5 {[%emt 0:00:11]} Bd7 {[%emt 0:00:11]} 22. Be2 {[%emt 0:03:13]} Bg5 {[%emt 0:10:20]} 23. Rxa6 {[%emt 0:06:29]} Qb7 {[%emt 0:05:49]} 24. Rxd6 {[%emt 0:04:18]} Bxd2 {[%emt 0:00:36]} 25. Ba6 {[%emt 0:00:23]} Qc7 {[%emt 0:03:24]} 26. Rxd7 {[%emt 0:00:59]} Qxc2 {[%emt 0:03:57]} 27. Qxd2 {[%emt 0:00:24]} Qxb3 {[%emt 0:02:16]} 28. Bxc8 {[%emt 0:00:06]} Rxc8 {[%emt 0:00:09]} 29. g3 {[%emt 0:03:37]} Rc2 {[%emt 0:02:29]} 30. Qe1 {[%emt 0:09:46]} Qf3 {[%emt 0:04:26]} 31. Rd8+ {[%emt 0:04:33]} Kh7 {[%emt 0:00:07]} 32. Ra8 {[%emt 0:00:56]} Rxb2 {[%emt 0:06:17]} 33. Ra2 {[%emt 0:01:48]} Rxa2 {[%emt 0:02:05]} 1/2-1/2